fUSD/lending_fUSD_20260319
["ID","MTS","AMOUNT","RATE_DAILY","PERIOD"]
[408616104,1773957042295,-2600.0,0.00016082,2]
[408616105,1773957042306,-1600.0,0.00016082,2]
[408616106,1773957042315,-2000.0,0.000161,2]
[408616107,1773957042325,-500.0,0.00016142,2]
[408616108,1773957042334,-8565.75555911,0.00016142,2]
[408616109,1773957042344,-250.0,0.00016142,2]
[408616110,1773957042354,-250.0,0.00016142,2]
[408616111,1773957042365,-250.0,0.00016142,2]
[408616112,1773957042375,-250.0,0.00016142,2]
[408616113,1773957042384,-250.0,0.00016142,2]
[408616114,1773957042394,-250.0,0.00016142,2]
[408616115,1773957042404,-250.0,0.00016142,2]
[408616116,1773957042413,-250.0,0.00016142,2]
[408616117,1773957042423,-250.0,0.00016142,2]
[408616118,1773957042433,-250.0,0.00016142,2]
[408616119,1773957042442,-250.0,0.00016142,2]
[408616120,1773957042452,-250.0,0.00016142,2]
[408616121,1773957042462,-250.0,0.00016142,2]
[408616122,1773957042471,-250.0,0.00016142,2]
[408616123,1773957042482,-250.0,0.00016142,2]
[408616124,1773957042491,-250.0,0.00016142,2]
[408616125,1773957042502,-250.0,0.00016142,2]
[408616126,1773957042513,-250.0,0.00016142,2]
[408616127,1773957042522,-250.0,0.00016142,2]
[408616128,1773957042532,-250.0,0.00016142,2]
[408616129,1773957042541,-295.82407261,0.00016142,2]
[408616130,1773957042551,-250.0,0.00016142,2]
[408616131,1773957042561,-250.0,0.00016142,2]
[408616132,1773957042570,-373.8483694,0.00016142,2]
[408616133,1773957042581,-250.0,0.00016142,2]
[408616134,1773957042590,-250.0,0.00016142,2]
[408616135,1773957042600,-250.0,0.00016142,2]
[408616136,1773957042609,-250.0,0.00016142,2]
[408616137,1773957042619,-669.13395939,0.00016142,2]
[408616138,1773957042628,-151.0,0.00016142,2]
[408616139,1773957042637,-952.85,0.00016173,2]
[408616140,1773957042647,-577.17,0.00016175,2]
[408616141,1773957042657,-8882.6885148,0.00016197,2]
[408616142,1773957042667,-151.0,0.00016197,2]
[408616143,1773957042677,-2000.0,0.000162,2]
[408616144,1773957042686,-2402.0,0.00016238,2]
[408616145,1773957042696,-2000.0,0.0001624,2]
[408616146,1773957042705,-9211.34798985,0.00016252,2]
[408616147,1773957042715,-4000.0,0.00016282,2]
[408616148,1773957042725,-1844.57644637,0.00016307,2]
[408616149,1773957042735,-7753.59390111,0.00016421,2]
[408616150,1773957042745,-183.61,0.00016438,2]
[408616151,1773957042754,-362.2,0.00016438,2]
[408616152,1773957042764,-500.0,0.00016438,2]
[408616153,1773957042773,-500.0,0.00016438,2]
[408616154,1773957042783,-500.0,0.00016438,2]
[408616155,1773957042792,-500.0,0.00016438,2]
[408616156,1773957042802,-500.0,0.00016438,2]
[408616157,1773957042812,-500.0,0.00016438,2]
[408616158,1773957042822,-500.0,0.00016438,2]
[408616159,1773957042831,-500.0,0.00016438,2]
[408616160,1773957042840,-500.0,0.00016438,2]
[408616161,1773957042850,-500.0,0.00016438,2]
[408616162,1773957042859,-500.0,0.00016438,2]
[408616163,1773957042869,-500.0,0.00016438,2]
[408616164,1773957042878,-252.34507328,0.00016438,2]
[408616165,1773957042887,-202.49865762,0.00016438,2]
[408616166,1773957042896,-151.0,0.00016438,2]
[408616167,1773957042906,-151.0,0.00016438,2]
[408616168,1773957042915,-151.0,0.00016438,2]
[408616169,1773957042924,-151.0,0.00016438,2]
[408616170,1773957042933,-721.12,0.00016449,2]
[408616172,1773957042943,-649.0,0.00016475,5]
[408616174,1773957042952,-151.0,0.00016532,2]
[408616176,1773957042962,-7847.7638423,0.00016589,2]
[408616177,1773957042972,-3681.171,0.00016634,2]
[408616178,1773957042981,-178.52,0.00016634,2]
[408616179,1773957042990,-4000.0,0.0001667,2]
[408616180,1773957042999,-1930.54991177,0.00016679,2]
[408616181,1773957043011,-3945.16393513,0.00016695,3]
[408616182,1773957043020,-2398.0,0.0001673,2]
[408616183,1773957043029,-742.0,0.00016784,5]
[408616184,1773957043038,-362.2,0.00016817,2]
[408616185,1773957043047,-281.13,0.00016823,2]
[408616186,1773957043058,-500.0,0.00016873,2]
[408616187,1773957043067,-500.0,0.00016883,2]
[408616188,1773957043080,-500.0,0.00016883,2]
[408616189,1773957043092,-500.0,0.00016883,2]
[408616190,1773957043101,-500.0,0.00016883,2]
[408616191,1773957043111,-500.0,0.00016883,2]
[408616192,1773957043120,-216.36884005,0.0001691,2]
[408616193,1773957043130,-577.17,0.00016984,2]
[408616194,1773957043140,-500.0,0.00016999,2]
[408616195,1773957043149,-300.0,0.00016999,2]
[408616196,1773957043158,-58421.95285626,0.00017,2]
[408616197,1773957043167,-151.0,0.00017,2]
[408616198,1773957043177,-300.0,0.00017,2]
[408616199,1773957043186,-151.0,0.00017,2]
[408616200,1773957043195,-151.0,0.00017,2]
[408616201,1773957043204,-151.0,0.00017,2]
[408616202,1773957043213,-151.0,0.00017,2]
[408616203,1773957043223,-151.0,0.00017,2]
[408616204,1773957043233,-151.0,0.00017,2]
[408616205,1773957043242,-151.0,0.00017,2]
[408616206,1773957043252,-1000.0,0.00017038,2]
[408616207,1773957043261,-1000.0,0.00017038,2]
[408616208,1773957043270,-1000.0,0.00017038,2]
[408616209,1773957043280,-1000.0,0.00017038,2]
[408616210,1773957043289,-1000.0,0.00017038,2]
[408616211,1773957043298,-151.0,0.0001704,2]
[408616212,1773957043307,-151.0,0.0001704,2]
[408616213,1773957043317,-151.0,0.0001704,2]
[408616214,1773957043326,-151.0,0.0001704,2]
[408616215,1773957043337,-216.37,0.00017045,2]
[408616216,1773957043346,-5000.0,0.0001705,2]
[408616217,1773957043355,-4000.0,0.00017058,2]
[408616218,1773957043364,-739.454561,0.00017094,2]
[408616219,1773957043374,-151.0,0.00017095,2]
[408616220,1773957043384,-13842.51854774,0.000171,2]
[408616221,1773957043394,-507.0,0.00017148,5]
[408616222,1773957043403,-7753.59390111,0.0001716,2]
[408616223,1773957043413,-362.2,0.00017195,2]
[408616224,1773957043423,-571.68,0.000172,2]
[408616225,1773957043432,-493.02,0.000172,2]
[408616226,1773957043441,-339.2,0.000172,2]
[408616227,1773957043450,-202285.4,0.000172,2]
[408616228,1773957043459,-379.0,0.00017205,2]
[408616229,1773957043468,-161.6,0.00017226,2]
[408616230,1773957043478,-379.0,0.00017279,2]
[408616231,1773957043487,-5781.01258227,0.00017288,2]
[408616232,1773957043496,-1930.54991177,0.00017289,2]
[408616233,1773957043506,-151.0,0.00017297,2]
[408616235,1773957043516,-151.0,0.00017297,2]
[408616236,1773957043525,-151.0,0.00017297,2]
[408616238,1773957043534,-151.0,0.00017297,2]
[408616240,1773957043544,-254.409395,0.00017297,2]
[408616241,1773957043554,-151.0,0.00017297,2]
[408616242,1773957043564,-151.0,0.00017297,2]
[408616243,1773957043573,-151.0,0.00017297,2]
[408616244,1773957043582,-151.0,0.00017297,2]
[408616245,1773957043592,-234.795443,0.00017297,2]
[408616246,1773957043602,-41750.7193436,0.00017297,2]
[408616247,1773957043611,-21566.3295195,0.00017297,2]
[408616248,1773957043621,-379.0,0.0001731,2]
[408616249,1773957043630,-379.0,0.00017312,2]
[408616250,1773957043639,-379.0,0.00017329,2]
[408616251,1773957043649,-1000.0,0.00017452,7]
[408616252,1773957043658,-2600.0,0.00017452,7]
[408616253,1773957043668,-1600.0,0.00017452,7]
[408616254,1773957043677,-284.0,0.00017491,2]
[408616255,1773957043686,-379.0,0.00017499,2]
[408616256,1773957043695,-2402.0,0.00017539,2]
[408616258,1773957043704,-379.0,0.00017549,2]
[408616260,1773957043714,-168.0,0.00017563,2]
[408616262,1773957043723,-249.0,0.00017566,5]
[408616263,1773957043732,-362.2,0.00017573,2]
[408616264,1773957043742,-316.0,0.00017619,2]
[408616265,1773957043751,-620.0,0.00017651,2]
[408616266,1773957043760,-782.435,0.00017651,2]
[408616267,1773957043769,-1344.0,0.00017651,2]
[408616268,1773957043778,-3512.0,0.00017651,2]
[408616269,1773957043788,-1261.0,0.00017651,2]
[408616270,1773957043798,-3758.0,0.00017651,2]
[408616271,1773957043808,-414.0,0.00017651,2]
[408616272,1773957043817,-441.7,0.00017652,2]
[408616273,1773957043826,-348.0,0.00017691,2]
[408616274,1773957043835,-50288.6220059,0.000177,2]
[408616275,1773957043845,-379.0,0.00017731,2]
[408616276,1773957043854,-150.0,0.00017738,2]
[408616277,1773957043864,-1059.95375415,0.00017745,2]
[408616278,1773957043873,-150.0,0.00017748,2]
[408616279,1773957043882,-1000.0,0.00017748,2]
[408616280,1773957043891,-1000.0,0.00017752,2]
[408616281,1773957043901,-1000.0,0.00017764,2]
[408616282,1773957043910,-1000.0,0.00017777,2]
[408616283,1773957043919,-577.17,0.00017793,2]
[408616284,1773957043928,-1000.0,0.00017794,2]
[408616285,1773957043937,-150.0,0.00017795,2]
[408616286,1773957043946,-1000.0,0.00017799,2]
[408616287,1773957043956,-150.0,0.00017801,2]
[408616288,1773957043965,-1000.0,0.00017802,2]
[408616289,1773957043973,-250.0,0.00017808,2]
[408616290,1773957043983,-150.0,0.00017831,2]
[408616291,1773957043992,-1000.0,0.00017851,2]
[408616292,1773957044002,-400.0,0.0001787,2]
[408616293,1773957044013,-399.90719368,0.00017873,2]
[408616294,1773957044023,-402.43368627,0.00017874,2]
[408616295,1773957044032,-1000.0,0.00017885,2]
[408616296,1773957044042,-500.0,0.00017889,2]
[408616297,1773957044051,-150.0,0.00017898,2]
[408616298,1773957044062,-10000.0,0.000179,2]
[408616299,1773957044071,-151.0,0.000179,2]
[408616300,1773957044080,-1930.54991177,0.000179,2]
[408616301,1773957044090,-6300.46296053,0.000179,2]
[408616302,1773957044100,-7753.59390111,0.000179,2]
[408616303,1773957044109,-899.72919306,0.000179,3]
[408616304,1773957044119,-1000.0,0.0001791,2]
[408616305,1773957044130,-150.0,0.00017912,2]
[408616306,1773957044140,-164.51879837,0.00017927,2]
[408616307,1773957044149,-151.0,0.00017941,2]
[408616308,1773957044158,-151.0,0.00017941,2]
[408616309,1773957044167,-1000.0,0.00017946,2]
[408616310,1773957044176,-171.67304163,0.00017949,2]
[408616311,1773957044185,-1000.0,0.00017949,2]
[408616312,1773957044195,-362.2,0.00017952,2]
[408616313,1773957044204,-1000.0,0.00017965,2]
[408616314,1773957044406,-400.0,0.0001797,2]
[408616315,1773957044415,-599.0,0.00017972,2]
[408616316,1773957044425,-242.162736,0.00017972,2]
[408616317,1773957044434,-501.28770509,0.00017973,2]
[408616318,1773957044443,-500.0,0.00017973,2]
[408616319,1773957044452,-500.0,0.00017973,2]
[408616320,1773957044462,-500.0,0.00017999,2]
[408616321,1773957044471,-150.0,0.00017999,2]
[408616322,1773957044480,-227.93385155,0.00017999,2]
[408616323,1773957044490,-1523537.11672152,0.00018,2]
[408616324,1773957044506,-97541.87683908,0.00018,2]
[408616325,1773957044517,-2784.03994496,0.00018,2]
[408616326,1773957044528,-870.53119269,0.00018,2]
[408616327,1773957044539,-488.27091467,0.00018,2]
[408616328,1773957044726,-354.45766,0.00015408,7]
[408616329,1773957044736,-220.33482065,0.000159,2]
[408616330,1773957044745,-12201.61269357,0.00016679,2]
[408616331,1773957044754,-2465.0,0.00017651,2]
[408616332,1773957044764,-166446.43826855,0.00018,2]
[408616333,1773957044775,-20820.0646233,0.00018,2]
[408616334,1773957044786,-534.26111805,0.00018,2]
[408616335,1773957044800,-4923.77024614,0.00018,2]
[408616336,1773957044811,-1500.91782587,0.00018,2]
[408616337,1773957044822,-1067.6817414,0.00018,2]
[408616338,1773957046242,-849.0,0.00018,2]
[408616339,1773957046253,-600.0,0.00018,2]
[408616393,1773958232260,-158.91,8.087e-05,2]
[408616394,1773958232270,-250.0,8.087e-05,2]
[408616395,1773958232280,-218.0,8.087e-05,2]
[408616396,1773958232289,-250.0,8.324e-05,2]
[408616397,1773958232298,-208.93254698,8.893e-05,2]
[408616398,1773958232323,-991.06745302,8.893e-05,2]
[408616399,1773958232333,-466.14918422,8.894e-05,2]
[408616400,1773958232343,-300.0,8.894e-05,2]
[408616401,1773958232352,-250.0,8.895e-05,2]
[408616402,1773958232363,-1680.0,9.782e-05,2]
[408616403,1773958232374,-300.0,9.784e-05,2]
[408616404,1773958232383,-439.39379698,0.00010186,2]
[408616405,1773958232394,-466.1491842,0.00010691,2]
[408616406,1773958232403,-1200.0,0.00010761,2]
[408616407,1773958232412,-2168.04,0.00011507,2]
[408616408,1773958232423,-1796.0,0.00011667,2]
[408616409,1773958232432,-1162.0,0.00011691,2]
[408616410,1773958232441,-506.89,0.00012022,2]
[408616411,1773958232452,-485.0,0.00012086,2]
[408616412,1773958232462,-196.4667415,0.0001211,2]
[408616413,1773958232472,-160.0,0.00012259,2]
[408616414,1773958232481,-979.16666667,0.00012337,2]
[408616415,1773958232491,-26499.14035228,0.00012364,2]
[408616416,1773958232500,-150.0,0.00012366,2]
[408616417,1773958232510,-9999.99,0.00012367,2]
[408616418,1773958232519,-3807.71,0.00012367,2]
[408616419,1773958232529,-151.0,0.00012367,2]
[408616420,1773958232539,-151.0,0.00012367,2]
[408616421,1773958232548,-151.0,0.00012367,2]
[408616422,1773958232558,-151.0,0.00012367,2]
[408616423,1773958232568,-151.0,0.00012367,2]
[408616424,1773958232578,-200.0,0.00012367,2]
[408616425,1773958232588,-151.0,0.00012367,2]
[408616426,1773958232597,-151.0,0.00012367,2]
[408616427,1773958232607,-151.0,0.00012367,2]
[408616428,1773958232616,-1534.5283,0.00012373,2]
[408616429,1773958232626,-1000.0,0.00012374,2]
[408616430,1773958232635,-32974.6857,0.00012374,2]
[408616431,1773958232644,-466.1491842,0.00012587,2]
[408616432,1773958232654,-617.71984531,0.00012667,2]
[408616433,1773958232663,-500.0,0.00012667,2]
[408616434,1773958232672,-500.0,0.00012667,2]
[408616435,1773958232681,-500.0,0.00012667,2]
[408616436,1773958232690,-500.0,0.00012667,2]
[408616437,1773958232700,-500.0,0.00012667,2]
[408616438,1773958232709,-500.0,0.00012667,2]
[408616439,1773958232719,-17916.57430117,0.00012739,2]
[408616440,1773958232728,-150.99,0.00012893,2]
[408616441,1773958232738,-4999.99,0.00012893,2]
[408616442,1773958232747,-999.99,0.00012893,2]
[408616443,1773958232756,-9999.99,0.00012893,2]
[408616444,1773958232766,-352.8,0.00012893,2]
[408616445,1773958232775,-150.99,0.00012893,2]
[408616446,1773958232785,-1865.66343748,0.00012893,2]
[408616447,1773958232797,-1938.81656252,0.00012893,2]
[408616448,1773958232807,-3311.90547872,0.00012893,2]
[408616449,1773958232818,-1037.25,0.00012893,2]
[408616450,1773958232829,-5650.83452128,0.00012893,2]
[408616451,1773958232839,-299.99,0.00012893,2]
[408616452,1773958232848,-500.0,0.00012893,2]
[408616453,1773958232857,-500.0,0.00012938,2]
[408616454,1773958232867,-500.0,0.00013167,2]
[408616455,1773958232877,-500.0,0.00013215,2]
[408616456,1773958232886,-500.0,0.00013215,2]
[408616457,1773958232895,-500.0,0.00013215,2]
[408616458,1773958232905,-500.0,0.00013229,2]
[408616459,1773958232914,-507.0,0.000133,2]
[408616460,1773958232924,-3240.0,0.00013425,2]
[408616461,1773958232934,-500.0,0.00013441,2]
[408616462,1773958232943,-255.0,0.00013454,2]
[408616463,1773958232953,-4845.80176791,0.00013486,2]
[408616464,1773958232962,-500.0,0.00013698,2]
[408616465,1773958232971,-500.0,0.00013698,2]
[408616466,1773958232980,-500.0,0.00013698,2]
[408616467,1773958232989,-500.0,0.00013698,2]
[408616468,1773958232999,-500.0,0.00013698,2]
[408616469,1773958233008,-500.0,0.00013698,2]
[408616470,1773958233017,-500.0,0.00013698,2]
[408616471,1773958233027,-500.0,0.00013698,2]
[408616472,1773958233036,-500.0,0.00013698,2]
[408616473,1773958233045,-425.65,0.00013699,2]
[408616474,1773958233055,-500.0,0.00013729,2]
[408616475,1773958233065,-285.89429243,0.00013963,2]
[408616476,1773958233074,-500.0,0.00014055,2]
[408616477,1773958233083,-7664.0,0.00014181,2]
[408616478,1773958233092,-2440.32253875,0.00014284,2]
[408616479,1773958233101,-5105.17149583,0.00014316,2]
[408616480,1773958233110,-2333.1569,0.00014363,2]
[408616481,1773958233119,-425.65,0.00014384,2]
[408616482,1773958233129,-17356.85,0.00014463,2]
[408616483,1773958233138,-150.0,0.00014566,2]
[408616484,1773958233148,-2440.32253871,0.00014686,2]
[408616485,1773958233157,-507.0,0.0001469,3]
[408616486,1773958233166,-3512.0,0.00015068,2]
[408616487,1773958233175,-620.0,0.00015068,2]
[408616488,1773958233184,-1261.0,0.00015068,2]
[408616489,1773958233193,-923.0,0.00015068,2]
[408616490,1773958233202,-1214.0,0.00015068,2]
[408616491,1773958233211,-3758.0,0.00015068,2]
[408616492,1773958233221,-2465.0,0.00015068,2]
[408616493,1773958233230,-425.65,0.00015068,2]
[408616494,1773958233240,-2440.32253871,0.00015088,2]
[408616495,1773958233248,-500.0,0.00015208,2]
[408616496,1773958233258,-2440.32253871,0.00015489,2]
[408616497,1773958233267,-500.0,0.00015722,2]
[408616498,1773958233276,-7045.47527146,0.00015745,2]
[408616499,1773958233285,-250.0,0.00015745,2]
[408616500,1773958233295,-250.0,0.00015745,2]
[408616501,1773958233305,-250.0,0.00015745,2]
[408616502,1773958233315,-250.0,0.00015745,2]
[408616503,1773958233327,-250.0,0.00015745,2]
[408616504,1773958233337,-250.0,0.00015745,2]
[408616505,1773958233347,-250.0,0.00015745,2]
[408616506,1773958233357,-250.0,0.00015745,2]
[408616507,1773958233367,-336.41996354,0.00015745,2]
[408616508,1773958233376,-425.65,0.00015753,2]
[408616509,1773958233386,-21697.5745,0.00015863,2]
[408616510,1773958233396,-2000.0,0.0001589,2]
[408616511,1773958233407,-2440.32253871,0.00015891,2]
[408616512,1773958233416,-160.243506,0.000159,2]
[408616513,1773958233425,-160.24350592,0.000159,2]
[408616514,1773958233434,-160.24350592,0.000159,2]
[408616515,1773958233443,-160.24350592,0.000159,2]
[408616516,1773958233453,-160.24350592,0.000159,2]
[408616517,1773958233462,-200.0,0.00016026,2]
[408616518,1773958233471,-10000.0,0.00016044,2]
[408616519,1773958233480,-160.24350592,0.00016058,2]
[408616520,1773958233490,-1500.0,0.00016063,2]
[408616521,1773958233499,-150.0,0.00016072,2]
[408616522,1773958233508,-507.0,0.00016079,4]
[408616523,1773958233518,-1900.0,0.00016082,2]
[408616524,1773958233528,-800.0,0.00016082,2]
[408616525,1773958233537,-200.0,0.00016166,2]
[408616526,1773958233547,-2440.32253871,0.00016293,2]
[408616527,1773958233557,-5666.0,0.000163,2]
[408616528,1773958233566,-1300.0,0.00016356,2]
[408616529,1773958233575,-599.0,0.00016421,2]
[408616530,1773958233584,-599.0,0.00016425,2]
[408616531,1773958233593,-160.24350592,0.00016426,2]
[408616532,1773958233602,-599.0,0.00016427,2]
[408616533,1773958233611,-211.3,0.00016438,2]
[408616534,1773958233620,-234.26,0.00016438,2]
[408616535,1773958233629,-425.65,0.00016438,2]
[408616536,1773958233638,-599.0,0.00016447,2]
[408616537,1773958233648,-599.0,0.0001653,2]
[408616538,1773958233657,-2440.32253871,0.00016695,2]
[408616539,1773958233666,-599.0,0.00016769,2]
[408616540,1773958233675,-599.0,0.00016777,2]
[408616541,1773958233684,-160.24350592,0.00016795,2]
[408616542,1773958233696,-192.347815,0.00016799,7]
[408616543,1773958233706,-211.3,0.00016817,2]
[408616544,1773958233716,-599.0,0.00016825,2]
[408616545,1773958233725,-506.89,0.00016831,2]
[408616546,1773958233735,-368.184963,0.00016846,7]
[408616547,1773958233744,-388.199788,0.00016846,7]
[408616548,1773958233753,-388.276972,0.00016846,7]
[408616549,1773958233763,-193.021889,0.00016846,7]
[408616550,1773958233773,-599.0,0.00016862,2]
[408616551,1773958233783,-599.0,0.00016898,2]
[408616552,1773958233793,-500.0,0.00016999,2]
[408616553,1773958233803,-500.0,0.00017014,2]
[408616554,1773958233812,-2500.0,0.00017042,2]
[408616555,1773958233821,-2440.32253871,0.00017096,2]
[408616556,1773958233831,-599.0,0.0001714,2]
[408616557,1773958233840,-3983.383,0.00017143,2]
[408616558,1773958233849,-187.848,0.00017143,2]
[408616559,1773958233858,-160.24350592,0.00017163,2]
[408616560,1773958233868,-500.0,0.00017189,2]
[408616561,1773958233877,-190.62940492,0.00017189,2]
[408616562,1773958233886,-500.0,0.00017189,2]
[408616563,1773958233895,-534.77770415,0.00017189,2]
[408616564,1773958233906,-282.73554221,0.00017189,2]
[408616565,1773958233915,-319.45253445,0.00017189,2]
[408616566,1773958233924,-132173.4048,0.00017189,2]
[408616567,1773958233933,-211.3,0.00017195,2]
[408616568,1773958233942,-621.94276707,0.00017199,2]
[408616569,1773958233952,-367.0,0.00017295,2]
[408616570,1773958233967,-367.0,0.0001741,2]
[408616571,1773958233975,-1900.0,0.00017452,7]
[408616572,1773958233984,-800.0,0.00017452,7]
[408616573,1773958233993,-507.0,0.00017469,5]
[408616574,1773958234002,-1852.42,0.00017484,2]
[408616575,1773958234012,-2440.32253871,0.00017498,2]
[408616576,1773958234023,-300.0,0.000175,6]
[408616577,1773958234034,-160.24350592,0.00017532,2]
[408616578,1773958234043,-211.3,0.00017573,2]
[408616579,1773958234053,-367.0,0.00017581,2]
[408616580,1773958234062,-600.0,0.000176,6]
[408616581,1773958234071,-1671.92606197,0.0001764,2]
[408616582,1773958234083,-900.0,0.000177,6]
[408616583,1773958234096,-1300.0,0.00017726,7]
[408616584,1773958234106,-161.0,0.00017756,2]
[408616585,1773958234116,-1300.0,0.000178,6]
[408616586,1773958234126,-367.0,0.00017802,2]
[408616587,1773958234135,-250.0,0.00017808,2]
[408616588,1773958234145,-520.0,0.00017866,5]
[408616589,1773958234154,-438.9,0.00017871,2]
[408616590,1773958234163,-367.0,0.00017893,2]
[408616591,1773958234172,-367.0,0.00017895,2]
[408616592,1773958234182,-1271.87555574,0.000179,2]
[408616593,1773958234191,-2440.32253871,0.000179,2]
[408616594,1773958234201,-1600.0,0.000179,6]
[408616595,1773958234209,-160.24350592,0.000179,2]
[408616596,1773958234219,-242.56375437,0.000179,2]
[408616597,1773958234228,-26666.75731983,0.000179,2]
[408616598,1773958234237,-4200.30864036,0.000179,2]
[408616599,1773958234246,-5000.0,0.000179,2]
[408616600,1773958234256,-211.3,0.00017952,2]
[408616601,1773958234265,-450.0,0.0001797,2]
[408616602,1773958234275,-500.0,0.00017973,2]
[408616603,1773958234284,-207.63752376,0.00017973,2]
[408616604,1773958234294,-300.0,0.00017999,2]
[408616605,1773958234304,-666.0,0.00017999,2]
[408616606,1773958234313,-500.0,0.00017999,2]
[408616607,1773958234325,-500.0,0.00017999,2]
[408616608,1773958234335,-500.0,0.00017999,2]
[408616609,1773958234344,-500.0,0.00017999,2]
[408616610,1773958234354,-500.0,0.00017999,2]
[408616611,1773958234363,-500.0,0.00017999,2]
[408616612,1773958234373,-524.21910232,0.00017999,2]
[408616613,1773958234382,-812130.85753431,0.00018,2]
[408616614,1773958234398,-68598.15409254,0.00018,2]
[408616615,1773958234409,-834.3403945,0.00018,2]
[408616616,1773958234421,-8202.4203,0.00018,2]
[408616617,1773958234432,-11811.65700701,0.00018,2]
[408616618,1773958234443,-273.719,0.00018,2]
[408616619,1773958234457,-765.5077029,0.00018,2]
[408616620,1773958238295,-250.0,0.00010809,2]
[408616621,1773958238305,-909.41324796,0.00012274,2]
[408616622,1773958238317,-14016.39242902,0.00012274,2]
[408616624,1773958238352,-46418.17827047,0.00012274,2]
[408616625,1773958238365,-10567.5,0.00012274,2]
[408616626,1773958238377,-74596.30322681,0.00012274,2]
[408616627,1773958238389,-24389.24633256,0.00012274,2]
[408616628,1773958238520,-3239.94984,0.00012274,2]
[408616629,1773958238531,-1553.52,0.00012274,2]
[408616652,1773958240692,-251733.72278766,0.00012274,2]
[408616663,1773958243512,-18908.67514547,0.00012274,2]
[408616669,1773958246303,-3656.7,0.00012274,2]
[408616670,1773958246316,-2000.0,0.00012274,2]
[408616671,1773958246331,-646.0500007,0.00012274,2]
[408616673,1773958749492,-358.18864893,0.00011537,2]
[408616674,1773958749521,-1120.0,0.00011589,2]
[408616675,1773958749550,-195.0,0.00011589,2]
[408616676,1773958749574,-300.0,0.00011589,2]
[408616677,1773958749599,-5000.0,0.00011589,2]
[408616678,1773958749623,-250.0,0.00011589,2]
[408616679,1773958749648,-300.0,0.00011589,2]
[408616680,1773958749673,-195.0,0.0001159,2]
[408616681,1773958749696,-195.0,0.0001159,2]
[408616682,1773958749720,-195.0,0.0001159,2]
[408616683,1773958749744,-558.56525513,0.0001159,2]
[408616684,1773958749768,-500.0,0.0001159,2]
[408616685,1773958749795,-500.0,0.0001159,2]
[408616686,1773958749818,-501.45667635,0.0001159,2]
[408616687,1773958749847,-500.0,0.0001159,2]
[408616688,1773958749870,-398.49765241,0.0001159,2]
[408616689,1773958749898,-500.0,0.0001159,2]
[408616690,1773958749921,-167.72987836,0.0001159,2]
[408616691,1773958749947,-500.0,0.0001159,2]
[408616692,1773958749970,-500.0,0.0001159,2]
[408616693,1773958749997,-500.0,0.0001159,2]
[408616694,1773958750024,-500.0,0.0001159,2]
[408616695,1773958750051,-500.0,0.0001159,2]
[408616696,1773958750077,-500.0,0.0001159,2]
[408616697,1773958750100,-500.0,0.0001159,2]
[408616698,1773958750125,-500.0,0.0001159,2]
[408616699,1773958750151,-500.0,0.0001159,2]
[408616700,1773958750179,-500.0,0.0001159,2]
[408616701,1773958750207,-500.0,0.0001159,2]
[408616702,1773958750235,-500.0,0.0001159,2]
[408616703,1773958750261,-500.0,0.0001159,2]
[408616704,1773958750287,-500.0,0.0001159,2]